[Event "Late-Titled-Tuesday-Blitz-March-26-2024"]
[Site "Chess.com"]
[Date "2024.03.26"]
[Round "5"]
[White "blank0923"]
[Black "janhelmer03"]
[Result "0-1"]
[WhiteElo "2568"]
[BlackElo "2414"]
[TimeControl "180+1"]
[EndTime "14:58:21 PDT"]
[Termination "janhelmer03 won by checkmate"]

1. e4 {[%clk 0:03:00.9]} 1... c5 {[%clk 0:02:49.5]} 2. c3 {[%clk 0:02:58.3]}
2... Nf6 {[%clk 0:02:49.3]} 3. e5 {[%clk 0:02:57.9]} 3... Nd5 {[%clk 0:02:49.8]}
4. d4 {[%clk 0:02:58.5]} 4... cxd4 {[%clk 0:02:50]} 5. Qxd4 {[%clk 0:02:59.4]}
5... e6 {[%clk 0:02:49.9]} 6. Nf3 {[%clk 0:02:59.9]} 6... Nc6 {[%clk 0:02:50.3]}
7. Qe4 {[%clk 0:03:00.5]} 7... f5 {[%clk 0:02:48.7]} 8. Qe2 {[%clk 0:03:00.9]}
8... Be7 {[%clk 0:02:39.7]} 9. g3 {[%clk 0:03:00.6]} 9... O-O {[%clk 0:02:40.2]}
10. Bg2 {[%clk 0:03:01.3]} 10... a5 {[%clk 0:02:31]} 11. O-O {[%clk 0:03:00.9]}
11... b6 {[%clk 0:02:31.1]} 12. Rd1 {[%clk 0:03:00.9]} 12... Ba6 {[%clk
0:02:31.5]} 13. Qe1 {[%clk 0:02:53.6]} 13... b5 {[%clk 0:02:22.9]} 14. Nbd2
{[%clk 0:02:51.6]} 14... Qb6 {[%clk 0:02:22.7]} 15. a3 {[%clk 0:02:10.2]} 15...
Bc5 {[%clk 0:02:03.4]} 16. Nb3 {[%clk 0:01:57.1]} 16... b4 {[%clk 0:01:57]} 17.
Nxc5 {[%clk 0:01:55.9]} 17... Qxc5 {[%clk 0:01:57.9]} 18. cxb4 {[%clk 0:01:52]}
18... axb4 {[%clk 0:01:57.6]} 19. h4 {[%clk 0:01:39.8]} 19... bxa3 {[%clk
0:01:45.8]} 20. Rxa3 {[%clk 0:01:40.7]} 20... Ncb4 {[%clk 0:01:40.9]} 21. Nd4
{[%clk 0:01:09.3]} 21... Bb7 {[%clk 0:01:25.1]} 22. Rxa8 {[%clk 0:01:03.3]}
22... Rxa8 {[%clk 0:01:26]} 23. Bd2 {[%clk 0:00:59.5]} 23... Qxd4 {[%clk
0:01:21.6]} 24. Bxb4 {[%clk 0:00:57.9]} 24... Qxb4 {[%clk 0:01:15.4]} 25. Qxb4
{[%clk 0:00:57.1]} 25... Nxb4 {[%clk 0:01:16.3]} 26. Bxb7 {[%clk 0:00:57.4]}
26... Ra5 {[%clk 0:00:51.2]} 27. Rxd7 {[%clk 0:00:34.6]} 27... Rxe5 {[%clk
0:00:50.5]} 28. Rd4 {[%clk 0:00:29.3]} 28... Rb5 {[%clk 0:00:46.4]} 29. Bc8
{[%clk 0:00:28.7]} 29... Kf7 {[%clk 0:00:45.2]} 30. Rd7+ {[%clk 0:00:28.2]}
30... Kf6 {[%clk 0:00:44.1]} 31. Rd6 {[%clk 0:00:28.8]} 31... Re5 {[%clk
0:00:40.7]} 32. Kg2 {[%clk 0:00:27.5]} 32... h6 {[%clk 0:00:33.6]} 33. Rd2
{[%clk 0:00:17.4]} 33... g5 {[%clk 0:00:25.9]} 34. hxg5+ {[%clk 0:00:15.9]}
34... hxg5 {[%clk 0:00:26.8]} 35. Rd4 {[%clk 0:00:14.3]} 35... Nd5 {[%clk
0:00:25.5]} 36. Bb7 {[%clk 0:00:13.6]} 36... Ne7 {[%clk 0:00:23.9]} 37. Bf3
{[%clk 0:00:09.9]} 37... g4 {[%clk 0:00:23.6]} 38. Bd1 {[%clk 0:00:10.4]} 38...
Rd5 {[%clk 0:00:21.4]} 39. Rxd5 {[%clk 0:00:10.2]} 39... Nxd5 {[%clk 0:00:22.3]}
40. Kf1 {[%clk 0:00:10.4]} 40... Ke5 {[%clk 0:00:22.8]} 41. Ke2 {[%clk
0:00:07.8]} 41... Kd4 {[%clk 0:00:23.3]} 42. Bb3 {[%clk 0:00:08.3]} 42... Nc7
{[%clk 0:00:19.8]} 43. Kd2 {[%clk 0:00:08.6]} 43... e5 {[%clk 0:00:19.4]} 44.
Bc2 {[%clk 0:00:08.9]} 44... f4 {[%clk 0:00:19.8]} 45. Bf5 {[%clk 0:00:09.1]}
45... fxg3 {[%clk 0:00:19.2]} 46. fxg3 {[%clk 0:00:10]} 46... e4 {[%clk
0:00:19.2]} 47. Bxg4 {[%clk 0:00:10.7]} 47... e3+ {[%clk 0:00:20]} 48. Ke2
{[%clk 0:00:06.5]} 48... Na6 {[%clk 0:00:17.3]} 49. Bf5 {[%clk 0:00:05.1]} 49...
Nc5 {[%clk 0:00:17]} 50. Bc2 {[%clk 0:00:04.2]} 50... Ne6 {[%clk 0:00:13.5]} 51.
b4 {[%clk 0:00:02]} 51... Nc7 {[%clk 0:00:11.3]} 52. Bd3 {[%clk 0:00:01.7]}
52... Nd5 {[%clk 0:00:11.2]} 53. Ba6 {[%clk 0:00:01.4]} 53... Nxb4 {[%clk
0:00:10.7]} 54. g4 {[%clk 0:00:01.7]} 54... Nxa6 {[%clk 0:00:10.7]} 55. g5
{[%clk 0:00:02]} 55... Nc5 {[%clk 0:00:06.1]} 56. g6 {[%clk 0:00:02.5]} 56...
Ne6 {[%clk 0:00:06.8]} 57. Ke1 {[%clk 0:00:01.4]} 57... Kd3 {[%clk 0:00:05.9]}
58. Kd1 {[%clk 0:00:01.6]} 58... e2+ {[%clk 0:00:05.7]} 59. Ke1 {[%clk
0:00:02.5]} 59... Ke3 {[%clk 0:00:05.7]} 60. g7 {[%clk 0:00:02.4]} 60... Nd4
{[%clk 0:00:06.4]} 61. g8=Q {[%clk 0:00:02.4]} 61... Nc2# {[%clk 0:00:07.3]} 0-1

[Event "Late-Titled-Tuesday-Blitz-March-26-2024"]
[Site "Chess.com"]
[Date "2024.03.26"]
[Round "5"]
[White "campochess"]
[Black "santosalberto1987"]
[Result "1/2-1/2"]
[WhiteElo "2162"]
[BlackElo "2515"]
[TimeControl "180+1"]
[EndTime "14:58:24 PDT"]
[Termination "Game drawn by repetition"]

1. Nf3 {[%clk 0:02:59.7]} 1... Nf6 {[%clk 0:02:59.4]} 2. b3 {[%clk 0:02:59.8]}
2... g6 {[%clk 0:02:58.7]} 3. Bb2 {[%clk 0:02:59.5]} 3... Bg7 {[%clk 0:02:59.1]}
4. c4 {[%clk 0:02:59.7]} 4... c5 {[%clk 0:02:57.7]} 5. g3 {[%clk 0:02:59.5]}
5... Nc6 {[%clk 0:02:57.2]} 6. Bg2 {[%clk 0:02:59.3]} 6... O-O {[%clk 0:02:57]}
7. O-O {[%clk 0:02:59.2]} 7... d5 {[%clk 0:02:54.9]} 8. cxd5 {[%clk 0:02:55.2]}
8... Nxd5 {[%clk 0:02:54.7]} 9. Bxg7 {[%clk 0:02:54.9]} 9... Kxg7 {[%clk
0:02:55.6]} 10. Nc3 {[%clk 0:02:54.3]} 10... b6 {[%clk 0:02:51.8]} 11. Nxd5
{[%clk 0:02:49.7]} 11... Qxd5 {[%clk 0:02:51.5]} 12. d4 {[%clk 0:02:49.7]} 12...
Bb7 {[%clk 0:02:27]} 13. e4 {[%clk 0:02:47.7]} 13... Qh5 {[%clk 0:01:57.9]} 14.
d5 {[%clk 0:02:46.5]} 14... Ne5 {[%clk 0:01:56.1]} 15. Nxe5 {[%clk 0:02:45.6]}
15... Qxe5 {[%clk 0:01:57]} 16. f4 {[%clk 0:02:45.4]} 16... Qc7 {[%clk
0:01:53.9]} 17. Rc1 {[%clk 0:02:43.4]} 17... Rad8 {[%clk 0:01:53.8]} 18. Qe2
{[%clk 0:02:43.5]} 18... Qd7 {[%clk 0:01:51.8]} 19. f5 {[%clk 0:02:29.7]} 19...
Qc7 {[%clk 0:01:44.2]} 20. Qb2+ {[%clk 0:02:24.4]} 20... f6 {[%clk 0:01:43.9]}
21. fxg6 {[%clk 0:02:19.2]} 21... hxg6 {[%clk 0:01:43.7]} 22. Rf4 {[%clk
0:02:02.7]} 22... Qe5 {[%clk 0:01:40.4]} 23. Qxe5 {[%clk 0:01:59.5]} 23... fxe5
{[%clk 0:01:41.3]} 24. Rxf8 {[%clk 0:01:59.2]} 24... Rxf8 {[%clk 0:01:40]} 25.
Rf1 {[%clk 0:01:58.6]} 25... Rxf1+ {[%clk 0:01:39.5]} 26. Bxf1 {[%clk
0:01:56.8]} 26... Kf6 {[%clk 0:01:40.4]} 27. Kf2 {[%clk 0:01:56.7]} 27... Bc8
{[%clk 0:01:18.5]} 28. Be2 {[%clk 0:01:54.6]} 28... Bd7 {[%clk 0:01:18.2]} 29.
g4 {[%clk 0:01:52.8]} 29... g5 {[%clk 0:01:16.5]} 30. Kg3 {[%clk 0:01:51.8]}
30... b5 {[%clk 0:01:14.9]} 31. h4 {[%clk 0:01:51.5]} 31... Kg6 {[%clk
0:01:15.1]} 32. h5+ {[%clk 0:01:42.9]} 32... Kf6 {[%clk 0:01:11.4]} 33. Kf2
{[%clk 0:01:43]} 33... a6 {[%clk 0:01:08.7]} 34. Ke3 {[%clk 0:01:42.8]} 34...
Be8 {[%clk 0:01:08.8]} 35. Kd2 {[%clk 0:01:40.6]} 35... e6 {[%clk 0:01:08.4]}
36. d6 {[%clk 0:01:34.6]} 36... Kg7 {[%clk 0:01:02.3]} 37. a4 {[%clk 0:01:28.3]}
37... Bc6 {[%clk 0:01:01.5]} 38. axb5 {[%clk 0:01:26]} 38... axb5 {[%clk
0:01:02.4]} 39. Kc3 {[%clk 0:01:23.3]} 39... Kf6 {[%clk 0:00:50.5]} 40. Bd3
{[%clk 0:01:20.6]} 40... Kf7 {[%clk 0:00:50]} 41. b4 {[%clk 0:00:58.5]} 41... c4
{[%clk 0:00:48.5]} 42. Bxc4 {[%clk 0:00:57.8]} 42... bxc4 {[%clk 0:00:48.4]} 43.
Kxc4 {[%clk 0:00:57.9]} 43... Bxe4 {[%clk 0:00:47.6]} 44. Kc5 {[%clk 0:00:54.5]}
44... Ke8 {[%clk 0:00:46.8]} 45. b5 {[%clk 0:00:50.6]} 45... Kd7 {[%clk
0:00:46.9]} 46. b6 {[%clk 0:00:50.5]} 46... Kc8 {[%clk 0:00:39.9]} 47. h6 {[%clk
0:00:50.4]} 47... Bg6 {[%clk 0:00:34.9]} 48. Kb5 {[%clk 0:00:43.5]} 48... Be4
{[%clk 0:00:13.1]} 49. Ka6 {[%clk 0:00:41.7]} 49... Kd7 {[%clk 0:00:10.5]} 50.
Ka7 {[%clk 0:00:41.3]} 50... Kxd6 {[%clk 0:00:09.7]} 51. b7 {[%clk 0:00:41.3]}
51... Bxb7 {[%clk 0:00:09.6]} 52. Kxb7 {[%clk 0:00:33.6]} 52... e4 {[%clk
0:00:09.5]} 53. h7 {[%clk 0:00:33.8]} 53... Ke5 {[%clk 0:00:09.7]} 54. h8=Q+
{[%clk 0:00:33]} 54... Kf4 {[%clk 0:00:10.6]} 55. Qh3 {[%clk 0:00:31.7]} 55...
e3 {[%clk 0:00:10.2]} 56. Kc6 {[%clk 0:00:31.9]} 56... e2 {[%clk 0:00:10.3]} 57.
Qh1 {[%clk 0:00:30.4]} 57... Kxg4 {[%clk 0:00:09.9]} 58. Kd6 {[%clk 0:00:29.2]}
58... Kg3 {[%clk 0:00:09.9]} 59. Ke5 {[%clk 0:00:23.3]} 59... Kf2 {[%clk
0:00:09.8]} 60. Qh2+ {[%clk 0:00:22.4]} 60... Kf1 {[%clk 0:00:10]} 61. Qh3+
{[%clk 0:00:20.7]} 61... Kf2 {[%clk 0:00:10.3]} 62. Qh2+ {[%clk 0:00:19.2]}
62... Kf1 {[%clk 0:00:10.5]} 63. Qh1+ {[%clk 0:00:16.3]} 63... Kf2 {[%clk
0:00:10.6]} 64. Qh2+ {[%clk 0:00:16.4]} 1/2-1/2

[Event "Late-Titled-Tuesday-Blitz-March-26-2024"]
[Site "Chess.com"]
[Date "2024.03.26"]
[Round "5"]
[White "kingofthenil"]
[Black "Rud_Makarian"]
[Result "0-1"]
[WhiteElo "2761"]
[BlackElo "3104"]
[TimeControl "180+1"]
[EndTime "14:58:25 PDT"]
[Termination "Rud_Makarian won by resignation"]

1. Nf3 {[%clk 0:02:56.1]} 1... Nf6 {[%clk 0:02:56.6]} 2. e3 {[%clk 0:02:54]}
2... d5 {[%clk 0:02:50.6]} 3. c4 {[%clk 0:02:53.5]} 3... e6 {[%clk 0:02:49.1]}
4. b3 {[%clk 0:02:53.9]} 4... dxc4 {[%clk 0:02:47]} 5. Bxc4 {[%clk 0:02:53.2]}
5... a6 {[%clk 0:02:47.2]} 6. Bb2 {[%clk 0:02:52.5]} 6... b5 {[%clk 0:02:47.5]}
7. Be2 {[%clk 0:02:53]} 7... Bb7 {[%clk 0:02:47.6]} 8. a4 {[%clk 0:02:52.4]}
8... b4 {[%clk 0:02:48.1]} 9. O-O {[%clk 0:02:49.8]} 9... Be7 {[%clk 0:02:48.7]}
10. d3 {[%clk 0:02:47.6]} 10... O-O {[%clk 0:02:49.3]} 11. Nbd2 {[%clk 0:02:48]}
11... Nbd7 {[%clk 0:02:49.9]} 12. a5 {[%clk 0:02:46.1]} 12... c5 {[%clk
0:02:50]} 13. Nc4 {[%clk 0:02:45.4]} 13... Nd5 {[%clk 0:02:48.8]} 14. Qc2 {[%clk
0:02:45.1]} 14... Bf6 {[%clk 0:02:45.6]} 15. Nd6 {[%clk 0:02:27.9]} 15... Bc6
{[%clk 0:02:37.2]} 16. Bxf6 {[%clk 0:02:23.9]} 16... Qxf6 {[%clk 0:02:35.9]} 17.
Ne4 {[%clk 0:02:23]} 17... Qe7 {[%clk 0:02:36.1]} 18. Rfc1 {[%clk 0:02:20.8]}
18... Rfc8 {[%clk 0:02:18.6]} 19. Nxc5 {[%clk 0:02:20.5]} 19... Nc3 {[%clk
0:02:17.7]} 20. Ne4 {[%clk 0:01:52.8]} 20... Bxe4 {[%clk 0:02:12.1]} 21. dxe4
{[%clk 0:01:51.7]} 21... Rc5 {[%clk 0:02:11.3]} 22. Bc4 {[%clk 0:01:48.7]} 22...
Ne5 {[%clk 0:02:08.4]} 23. Nxe5 {[%clk 0:01:47.6]} 23... Rxe5 {[%clk 0:02:09.3]}
24. Qd3 {[%clk 0:01:38.6]} 24... Rd8 {[%clk 0:02:03.6]} 25. Qf1 {[%clk
0:01:37.2]} 25... Qc7 {[%clk 0:02:02.9]} 26. Bxa6 {[%clk 0:01:19.3]} 26... Rxa5
{[%clk 0:02:02.8]} 27. Qc4 {[%clk 0:00:53.1]} 27... Rxa1 {[%clk 0:01:34.5]} 28.
Rxa1 {[%clk 0:00:51.3]} 28... Qxc4 {[%clk 0:01:34.9]} 29. Bxc4 {[%clk
0:00:51.2]} 29... Nxe4 {[%clk 0:01:34]} 30. Kf1 {[%clk 0:00:34.3]} 30... g5
{[%clk 0:01:29.1]} 31. Ke1 {[%clk 0:00:33.4]} 31... Nc3 {[%clk 0:01:25.2]} 32.
Be2 {[%clk 0:00:23]} 32... Kg7 {[%clk 0:01:19.4]} 33. Ra7 {[%clk 0:00:21.3]}
33... Ne4 {[%clk 0:01:03.4]} 34. Ra4 {[%clk 0:00:13.1]} 34... Rc8 {[%clk
0:01:00.4]} 35. Rxb4 {[%clk 0:00:12.3]} 35... Rc1+ {[%clk 0:01:00.2]} 36. Bd1
{[%clk 0:00:12.7]} 36... Nxf2 {[%clk 0:00:56.9]} 37. Kxf2 {[%clk 0:00:13]} 37...
Rxd1 {[%clk 0:00:57.2]} 38. Rd4 {[%clk 0:00:10.2]} 38... Rb1 {[%clk 0:00:57.1]}
39. b4 {[%clk 0:00:10.3]} 39... h5 {[%clk 0:00:53.6]} 40. h3 {[%clk 0:00:09.6]}
40... Rb2+ {[%clk 0:00:52.9]} 41. Kf3 {[%clk 0:00:10]} 41... Kg6 {[%clk
0:00:47.6]} 42. Rc4 {[%clk 0:00:09]} 42... f5 {[%clk 0:00:35.1]} 43. Rc6 {[%clk
0:00:09.1]} 43... Kf6 {[%clk 0:00:35.4]} 44. Rb6 {[%clk 0:00:07.4]} 44... Rb3
{[%clk 0:00:26.7]} 45. Kf2 {[%clk 0:00:07.3]} 45... h4 {[%clk 0:00:21.3]} 46.
Rb7 {[%clk 0:00:04.4]} 46... g4 {[%clk 0:00:18.9]} 47. hxg4 {[%clk 0:00:05.3]}
47... fxg4 {[%clk 0:00:19.8]} 48. Rh7 {[%clk 0:00:04.9]} 48... Rb2+ {[%clk
0:00:20]} 49. Kf1 {[%clk 0:00:05.4]} 49... Kg5 {[%clk 0:00:18.9]} 50. b5 {[%clk
0:00:05.3]} 50... Rxb5 {[%clk 0:00:18.4]} 51. Ke2 {[%clk 0:00:05.6]} 51... Rb2+
{[%clk 0:00:18.5]} 52. Kf1 {[%clk 0:00:05.9]} 52... g3 {[%clk 0:00:17.8]} 53.
Rf7 {[%clk 0:00:04.6]} 53... Rb1+ {[%clk 0:00:16.4]} 54. Ke2 {[%clk 0:00:03.8]}
54... Rg1 {[%clk 0:00:17.1]} 55. Rg7+ {[%clk 0:00:03.3]} 55... Kh6 {[%clk
0:00:15.1]} 56. Re7 {[%clk 0:00:01.5]} 56... Rxg2+ {[%clk 0:00:14.3]} 57. Kf3
{[%clk 0:00:02.1]} 57... Rf2+ {[%clk 0:00:14.5]} 58. Kg4 {[%clk 0:00:03]} 58...
g2 {[%clk 0:00:14]} 59. Rxe6+ {[%clk 0:00:03.9]} 59... Kg7 {[%clk 0:00:14.3]}
60. Kxh4 {[%clk 0:00:03.9]} 60... g1=Q {[%clk 0:00:13.7]} 61. Rg6+ {[%clk
0:00:03.9]} 61... Kxg6 {[%clk 0:00:12.5]} 0-1

[Event "Late-Titled-Tuesday-Blitz-March-26-2024"]
[Site "Chess.com"]
[Date "2024.03.26"]
[Round "5"]
[White "Vladimir_Zakhartsov"]
[Black "Hikaru"]
[Result "0-1"]
[WhiteElo "2992"]
[BlackElo "3282"]
[TimeControl "180+1"]
[EndTime "14:58:31 PDT"]
[Termination "Hikaru won by resignation"]

1. e4 {[%clk 0:02:59.6]} 1... c6 {[%clk 0:02:58.5]} 2. Nf3 {[%clk 0:02:56.8]}
2... d5 {[%clk 0:02:58.3]} 3. Nc3 {[%clk 0:02:57.5]} 3... Bg4 {[%clk 0:02:57.4]}
4. h3 {[%clk 0:02:51.8]} 4... Bxf3 {[%clk 0:02:56.9]} 5. Qxf3 {[%clk 0:02:52.7]}
5... e6 {[%clk 0:02:57.3]} 6. Be2 {[%clk 0:02:50.1]} 6... g6 {[%clk 0:02:55.8]}
7. O-O {[%clk 0:02:34.4]} 7... Bg7 {[%clk 0:02:56.1]} 8. d3 {[%clk 0:02:27.8]}
8... Nf6 {[%clk 0:02:54.5]} 9. Bd1 {[%clk 0:02:27.1]} 9... Nbd7 {[%clk
0:02:50.6]} 10. Ne2 {[%clk 0:02:24.1]} 10... O-O {[%clk 0:02:44.4]} 11. c3
{[%clk 0:02:23.6]} 11... dxe4 {[%clk 0:02:37.6]} 12. dxe4 {[%clk 0:02:24.5]}
12... Ne5 {[%clk 0:02:38.3]} 13. Qe3 {[%clk 0:02:18.7]} 13... Nd3 {[%clk
0:02:38]} 14. Bc2 {[%clk 0:02:08.1]} 14... Nxc1 {[%clk 0:02:37.4]} 15. Raxc1
{[%clk 0:02:09]} 15... e5 {[%clk 0:02:36]} 16. Rfd1 {[%clk 0:02:02.1]} 16... Qe7
{[%clk 0:02:35.8]} 17. Rd3 {[%clk 0:01:51.6]} 17... Rfd8 {[%clk 0:02:29.4]} 18.
Rcd1 {[%clk 0:01:51.5]} 18... Rxd3 {[%clk 0:02:29.4]} 19. Qxd3 {[%clk
0:01:50.9]} 19... Bf8 {[%clk 0:02:29.3]} 20. a4 {[%clk 0:01:47.4]} 20... Qc7
{[%clk 0:02:26.9]} 21. Nc1 {[%clk 0:01:39.8]} 21... h5 {[%clk 0:02:24]} 22. Nb3
{[%clk 0:01:38.6]} 22... h4 {[%clk 0:02:24]} 23. a5 {[%clk 0:01:36.7]} 23... Be7
{[%clk 0:02:23.6]} 24. Qe3 {[%clk 0:01:34.3]} 24... Kg7 {[%clk 0:02:23.2]} 25.
Kf1 {[%clk 0:01:33.7]} 25... Nh5 {[%clk 0:02:14.2]} 26. Qd3 {[%clk 0:01:31.1]}
26... Nf6 {[%clk 0:02:02.2]} 27. Qe3 {[%clk 0:01:25.6]} 27... b5 {[%clk
0:02:01.5]} 28. axb6 {[%clk 0:01:23.4]} 28... axb6 {[%clk 0:02:02.4]} 29. Ra1
{[%clk 0:01:18.7]} 29... Rb8 {[%clk 0:02:02.6]} 30. Nd2 {[%clk 0:01:16.5]} 30...
Bc5 {[%clk 0:01:59.3]} 31. Qe2 {[%clk 0:01:13.2]} 31... Nh5 {[%clk 0:01:55.5]}
32. b4 {[%clk 0:00:55]} 32... Be7 {[%clk 0:01:54.2]} 33. Nf3 {[%clk 0:00:53.4]}
33... Nf4 {[%clk 0:01:52]} 34. Qc4 {[%clk 0:00:50.4]} 34... b5 {[%clk
0:01:50.2]} 35. Qa2 {[%clk 0:00:49.1]} 35... c5 {[%clk 0:01:48.3]} 36. Qa5
{[%clk 0:00:31.4]} 36... Qc8 {[%clk 0:01:44]} 37. Bb3 {[%clk 0:00:17.8]} 37...
cxb4 {[%clk 0:01:43]} 38. cxb4 {[%clk 0:00:14.7]} 38... Qc3 {[%clk 0:01:42.3]}
39. Qa2 {[%clk 0:00:14.9]} 39... Rf8 {[%clk 0:01:26.3]} 40. Rd1 {[%clk
0:00:08.4]} 40... Qxb4 {[%clk 0:01:26.5]} 41. Nxe5 {[%clk 0:00:06.6]} 41... Qxe4
{[%clk 0:01:26.6]} 42. Nf3 {[%clk 0:00:06.2]} 42... Bf6 {[%clk 0:01:24.4]} 43.
Bc2 {[%clk 0:00:06.1]} 43... Qe2+ {[%clk 0:01:12.4]} 44. Kg1 {[%clk 0:00:06.6]}
44... Nxh3+ {[%clk 0:01:12.8]} 45. gxh3 {[%clk 0:00:07.5]} 45... Qxf3 {[%clk
0:01:13.2]} 46. Qb3 {[%clk 0:00:08]} 46... Qc6 {[%clk 0:00:57.7]} 47. Bd3 {[%clk
0:00:06.9]} 47... Rd8 {[%clk 0:00:52.9]} 48. Be2 {[%clk 0:00:05.6]} 48... Rxd1+
{[%clk 0:00:52.9]} 49. Bxd1 {[%clk 0:00:05.8]} 49... Bd4 {[%clk 0:00:51.9]} 50.
Qd3 {[%clk 0:00:04.7]} 50... Qf6 {[%clk 0:00:48.7]} 51. Qe2 {[%clk 0:00:02.9]}
51... Qf5 {[%clk 0:00:45.7]} 52. Kg2 {[%clk 0:00:02.7]} 52... b4 {[%clk
0:00:44.1]} 53. Bb3 {[%clk 0:00:03]} 53... Qf6 {[%clk 0:00:26.6]} 54. Qd2 {[%clk
0:00:02.7]} 54... Bc5 {[%clk 0:00:25.7]} 55. Qc2 {[%clk 0:00:03.2]} 55... Qd4
{[%clk 0:00:25.4]} 56. Qe2 {[%clk 0:00:03.1]} 56... f5 {[%clk 0:00:24.9]} 57.
Qc2 {[%clk 0:00:02.6]} 57... Kf6 {[%clk 0:00:24.1]} 58. Qe2 {[%clk 0:00:02.9]}
58... Qe4+ {[%clk 0:00:20.9]} 59. Qxe4 {[%clk 0:00:02.8]} 59... fxe4 {[%clk
0:00:21.8]} 60. Kf1 {[%clk 0:00:02.8]} 60... Ke5 {[%clk 0:00:22]} 61. Ke2 {[%clk
0:00:03.3]} 61... g5 {[%clk 0:00:21.4]} 62. Bc2 {[%clk 0:00:02.1]} 62... Kd4
{[%clk 0:00:20.6]} 63. Kd2 {[%clk 0:00:02.4]} 63... g4 {[%clk 0:00:14.7]} 64.
hxg4 {[%clk 0:00:03.3]} 64... h3 {[%clk 0:00:15.2]} 65. Ke2 {[%clk 0:00:03.8]}
65... h2 {[%clk 0:00:15.5]} 0-1

[Event "Late-Titled-Tuesday-Blitz-March-26-2024"]
[Site "Chess.com"]
[Date "2024.03.26"]
[Round "5"]
[White "Genghis_K"]
[Black "Andrey_Klymchuk"]
[Result "0-1"]
[WhiteElo "2915"]
[BlackElo "2705"]
[TimeControl "180+1"]
[EndTime "14:58:37 PDT"]
[Termination "Andrey_Klymchuk won on time"]

1. e4 {[%clk 0:03:00.9]} 1... c5 {[%clk 0:02:59.5]} 2. Nf3 {[%clk 0:02:48.9]}
2... Nc6 {[%clk 0:02:59.1]} 3. Bb5 {[%clk 0:02:48.7]} 3... g6 {[%clk 0:02:58.7]}
4. O-O {[%clk 0:02:48.9]} 4... Bg7 {[%clk 0:02:58.4]} 5. c3 {[%clk 0:02:49.5]}
5... Nf6 {[%clk 0:02:57.9]} 6. Re1 {[%clk 0:02:49.6]} 6... O-O {[%clk
0:02:57.3]} 7. d4 {[%clk 0:02:48.6]} 7... d5 {[%clk 0:02:57.3]} 8. e5 {[%clk
0:02:47.6]} 8... Ne4 {[%clk 0:02:57.3]} 9. Bxc6 {[%clk 0:02:48.3]} 9... bxc6
{[%clk 0:02:57.2]} 10. Be3 {[%clk 0:02:49]} 10... Qb6 {[%clk 0:02:56.7]} 11. Qc1
{[%clk 0:02:44.5]} 11... cxd4 {[%clk 0:02:55.6]} 12. cxd4 {[%clk 0:02:44]} 12...
a5 {[%clk 0:02:54.4]} 13. Nbd2 {[%clk 0:02:35.7]} 13... Nxd2 {[%clk 0:02:53.6]}
14. Qxd2 {[%clk 0:02:31.3]} 14... Bg4 {[%clk 0:02:50.3]} 15. Ng5 {[%clk
0:02:21.4]} 15... f6 {[%clk 0:02:45.6]} 16. exf6 {[%clk 0:02:18.1]} 16... exf6
{[%clk 0:02:45.6]} 17. h3 {[%clk 0:02:18.6]} 17... Bf5 {[%clk 0:02:42.2]} 18.
Nf3 {[%clk 0:02:17.6]} 18... g5 {[%clk 0:02:41.3]} 19. Rac1 {[%clk 0:02:15.7]}
19... Rfe8 {[%clk 0:02:39.6]} 20. Qc3 {[%clk 0:02:08.5]} 20... Re6 {[%clk
0:02:35.7]} 21. Bd2 {[%clk 0:02:02.6]} 21... Rxe1+ {[%clk 0:02:30]} 22. Bxe1
{[%clk 0:02:01.7]} 22... Bd7 {[%clk 0:02:17.5]} 23. a4 {[%clk 0:01:47.1]} 23...
Bf8 {[%clk 0:01:58]} 24. h4 {[%clk 0:01:43.3]} 24... g4 {[%clk 0:01:47.4]} 25.
Nh2 {[%clk 0:01:42.4]} 25... Bd6 {[%clk 0:01:44]} 26. Nf1 {[%clk 0:01:41.2]}
26... f5 {[%clk 0:01:40]} 27. Bd2 {[%clk 0:01:37.1]} 27... f4 {[%clk 0:01:39.5]}
28. g3 {[%clk 0:01:36.2]} 28... Rf8 {[%clk 0:01:22.5]} 29. Qxa5 {[%clk
0:01:30.5]} 29... Qb8 {[%clk 0:01:20.2]} 30. gxf4 {[%clk 0:01:20.7]} 30... Bxf4
{[%clk 0:01:18]} 31. Bxf4 {[%clk 0:01:21.1]} 31... Qxf4 {[%clk 0:01:17.4]} 32.
Qd2 {[%clk 0:01:21.7]} 32... Qf6 {[%clk 0:01:06.9]} 33. Qg5+ {[%clk 0:01:15.9]}
33... Qxg5 {[%clk 0:01:06.7]} 34. hxg5 {[%clk 0:01:16.5]} 34... Ra8 {[%clk
0:01:02.6]} 35. b3 {[%clk 0:01:13.3]} 35... Kf7 {[%clk 0:00:59.7]} 36. Re1
{[%clk 0:01:11.2]} 36... Rb8 {[%clk 0:00:56.2]} 37. a5 {[%clk 0:00:58.8]} 37...
Rxb3 {[%clk 0:00:51.1]} 38. Ra1 {[%clk 0:00:57.3]} 38... Rb7 {[%clk 0:00:47.6]}
39. Nd2 {[%clk 0:00:47.8]} 39... Bc8 {[%clk 0:00:43.4]} 40. Rc1 {[%clk
0:00:47.4]} 40... Bd7 {[%clk 0:00:37.4]} 41. Rc3 {[%clk 0:00:46.9]} 41... Kg6
{[%clk 0:00:33.2]} 42. Nb3 {[%clk 0:00:46.8]} 42... Ra7 {[%clk 0:00:32.4]} 43.
Nc5 {[%clk 0:00:46.5]} 43... Bc8 {[%clk 0:00:29.2]} 44. Nd3 {[%clk 0:00:46.6]}
44... Kxg5 {[%clk 0:00:26.8]} 45. Rxc6 {[%clk 0:00:46.1]} 45... Bf5 {[%clk
0:00:26]} 46. Ne5 {[%clk 0:00:26.8]} 46... Rxa5 {[%clk 0:00:25.2]} 47. Kg2
{[%clk 0:00:27]} 47... h5 {[%clk 0:00:24.9]} 48. Nf7+ {[%clk 0:00:21.4]} 48...
Kh4 {[%clk 0:00:23.2]} 49. Rf6 {[%clk 0:00:17]} 49... Be4+ {[%clk 0:00:23.3]}
50. Kh2 {[%clk 0:00:17.6]} 50... Ra4 {[%clk 0:00:21.5]} 51. Ne5 {[%clk
0:00:07.2]} 51... Rxd4 {[%clk 0:00:18.8]} 52. f3 {[%clk 0:00:07.1]} 52... gxf3
{[%clk 0:00:18.7]} 53. Nf7 {[%clk 0:00:01.2]} 53... Rd2+ {[%clk 0:00:18]} 54.
Kg1 {[%clk 0:00:02]} 54... f2+ {[%clk 0:00:18.3]} 55. Rxf2 {[%clk 0:00:02]}
55... Rxf2 {[%clk 0:00:18.6]} 56. Kxf2 {[%clk 0:00:02.9]} 56... d4 {[%clk
0:00:19.2]} 57. Nd6 {[%clk 0:00:03.1]} 57... Bg6 {[%clk 0:00:19.4]} 58. Nb5
{[%clk 0:00:01.9]} 58... d3 {[%clk 0:00:19.9]} 59. Nd4 {[%clk 0:00:02.1]} 59...
Kg4 {[%clk 0:00:19]} 60. Nf3 {[%clk 0:00:01.6]} 60... h4 {[%clk 0:00:18.5]} 61.
Ne5+ {[%clk 0:00:02.3]} 61... Kh5 {[%clk 0:00:18.4]} 62. Ke3 {[%clk 0:00:01.9]}
62... Bf5 {[%clk 0:00:18.5]} 63. Nf3 {[%clk 0:00:02]} 63... Kg4 {[%clk
0:00:18.5]} 64. Ne5+ {[%clk 0:00:02.2]} 64... Kg3 {[%clk 0:00:19]} 65. Nf3
{[%clk 0:00:02]} 65... h3 {[%clk 0:00:19.4]} 66. Nd4 {[%clk 0:00:02.9]} 66...
Bg4 {[%clk 0:00:18.9]} 0-1